bitfinex-derivatives/quotes_SOLF0:USTF0_20251229
["timestamp","ask_amount","ask_price","bid_price","bid_amount"]
[1767003358248,3.31,126.09,126.07,0.00299225]
[1767003358449,3.37052898,126.09,126.03,7.1493]
[1767003359143,3.31,126.07,126.01,100.9502]
[1767003359553,0.05550588,126.05,126.03,0.05979056]
[1767003361151,2.3518429,126.08,126.03,7.20919056]
[1767003361350,5.6618429,126.1,126.03,7.20919056]
[1767003362348,0.0518289,126.08,126.03,7.20919056]
[1767003364253,0.0018289,126.08,126.03,113.62473346]
[1767003364643,0.0018289,126.08,126.06,7.1477]
[1767003364849,97.11,126.14,126.05,113.5475429]
[1767003365046,97.11,126.14,126.05,207.3475429]
[1767003365954,0.05238541,126.11,126.08,0.05707582]
[1767003366253,0.00238541,126.11,126.08,0.05707582]
[1767003366459,0.00238541,126.11,126.08,7.20357582]
[1767003368961,0.00238541,126.11,126.08,0.05707582]
[1767003373163,0.00238541,126.11,126.08,7.20377582]
[1767003390558,0.00238541,126.11,126.08,100.98377582]
[1767003390759,0.00238541,126.11,126.08,7.20377582]
[1767003390963,0.00238541,126.11,126.08,100.98377582]
[1767003391165,0.00238541,126.11,126.08,7.20377582]
[1767003391366,0.00238541,126.11,126.08,100.98377582]
[1767003393672,0.00238541,126.11,126.08,0.05707582]
[1767003393973,0.00238541,126.11,126.08,93.83707582]
[1767003395280,0.00238541,126.11,126.08,0.05707582]
[1767003398780,0.00238541,126.11,126.08,7.20357582]
[1767003402378,3.28,126.15,126.08,0.05707582]
[1767003403078,3.28,126.12,126.08,0.05707582]
[1767003403472,3.44243184,126.11,126.08,0.05707582]
[1767003404489,3.39,126.1,126.05,100.9279]
[1767003404777,3.39,126.1,126.03,100.929]
[1767003404980,3.39,126.1,126.03,93.78]
[1767003405485,0.05359825,126.08,126.05,0.05281738]
[1767003406484,0.00359825,126.08,126.05,7.20111738]
[1767003406688,111.1211,126.14,126.05,0.05281738]
[1767003406689,12.74099507,126.14,126.05,0.05281738]
[1767003406880,3.34,126.14,126.04,111.2044]
[1767003407080,3.34,126.11,126.04,7.1488]
[1767003407789,0.05822574,126.09,126.06,0.05436073]
[1767003412286,3.39822574,126.09,126.06,0.05436073]
[1767003424717,3.39822574,126.09,125.98,118.2538]
[1767003424920,3.46,126.07,125.96,111.2695]
[1767003425214,3.46,126.06,126.0,7.1512]
[1767003425808,0.05218202,126.04,126.02,0.05515546]
[1767003429611,3.46,126.08,126.02,7.20485546]
[1767003429919,3.46,126.08,126.02,7.1497]
[1767003430519,0.05687551,126.06,126.04,0.05272662]
[1767003430822,3.46,126.06,126.04,0.00272662]
[1767003431716,3.51753552,126.06,126.04,0.00272662]
[1767003434421,3.46,126.04,125.98,7.1519]
[1767003435517,0.05007258,126.02,126.0,0.05669676]
[1767003435715,3.45007258,126.02,125.95,97.49386683]
[1767003436722,3.45007258,126.02,125.97,0.050288]
[1767003437026,3.45308926,126.01,125.97,0.050288]
[1767003442027,3.45308926,126.01,125.97,0.000288]
[1767003444131,10.60378926,126.01,125.97,0.000288]
[1767003444430,3.4,126.0,125.97,0.000288]
[1767003445639,3.4,125.99,125.97,0.000288]
[1767003445935,3.4,125.97,125.89,17.25234153]
[1767003446329,3.4,125.96,125.89,20.7354747]
[1767003446838,3.45594159,125.94,125.91,0.05051419]
[1767003447137,3.45594159,125.94,125.91,0.05544206]
[1767003450636,0.05594159,125.94,125.91,0.05544206]
[1767003460929,3.45594159,125.94,125.91,0.05544206]
[1767003462429,125.58873534,126.05,125.91,0.05544206]
[1767003462430,14.2981,126.04,125.92,2.35691504]
[1767003462629,14.2981,126.04,125.9,111.3266]
[1767003462630,96.25691504,126.01,125.9,111.3266]
[1767003462838,96.25691504,126.01,125.91,2.35691504]
[1767003463440,0.05847034,125.97,125.95,0.05281299]
[1767003464438,0.05847034,125.97,125.95,0.00281299]
[1767003466137,3.49847034,125.97,125.95,0.00281299]
[1767003472144,10.65147034,125.97,125.95,0.00281299]
[1767003472447,3.44,125.96,125.9,7.1565]
[1767003473241,0.051757,125.94,125.92,0.05639147]
[1767003473638,0.051757,125.94,125.89,20.7359747]
[1767003473639,3.311757,125.94,125.89,20.7359747]
[1767003474734,3.311757,125.94,125.9,0.0596794]
[1767003482847,10.466457,125.94,125.9,0.0596794]
[1767003483143,3.26,125.93,125.9,0.0596794]
[1767003485654,3.26,125.92,125.89,13.0884747]
[1767003485839,3.26,125.92,125.86,7.1587]
[1767003486148,3.26,125.92,125.86,10.4087]
[1767003486543,0.05131623,125.9,125.88,0.05152982]
[1767003505770,0.05131623,125.9,125.88,0.00152982]
[1767003506178,7.1541,125.95,125.88,3.23152982]
[1767003507068,0.05248751,125.93,125.88,3.23152982]
[1767003507668,0.05248751,125.93,125.88,10.38922982]
[1767003508572,0.05248751,125.93,125.89,3.23]
[1767003518782,0.05248751,125.93,125.89,10.3875]
[1767003518983,0.05248751,125.93,125.9,3.23]
[1767003519493,107.06023384,126.0,125.92,3.23]
[1767003520378,0.05031396,125.97,125.95,0.05378665]
[1767003520782,0.05031396,125.97,125.92,10.3855]
[1767003521780,0.05031396,125.97,125.93,0.0556475]
[1767003523688,0.05031396,125.97,125.93,10.4407475]
[1767003523890,0.05031396,125.97,125.94,3.23]
[1767003526393,0.05031396,125.97,125.93,0.0556475]
[1767003526798,0.05031396,125.97,125.93,3.3256475]
[1767003528596,0.05031396,125.97,125.93,10.4806475]
[1767003532005,0.05031396,125.97,125.94,3.27]
[1767003533900,0.05031396,125.97,125.93,0.0556475]
[1767003535408,0.05031396,125.97,125.93,3.5356475]
[1767003540511,0.05031396,125.97,125.93,10.6906475]
[1767003540716,0.05031396,125.97,125.94,3.48]
[1767003541212,93.9,125.99,125.95,3.48]
[1767003541811,13.08510624,126.02,125.97,3.48]
[1767003542120,13.08510624,126.02,125.93,3.48]
[1767003542420,0.05688765,125.99,125.96,0.05429635]
[1767003544617,7.20868765,125.99,125.96,0.05429635]
[1767003546326,0.05688765,125.99,125.96,0.05429635]
[1767003547819,0.05688765,125.99,125.96,3.53429635]
[1767003548016,13.08510624,126.02,125.96,3.53429635]
[1767003548726,20.30570624,126.02,125.96,3.53429635]
[1767003549121,0.06022852,126.0,125.96,3.53429635]
[1767003551925,0.00022852,126.0,125.96,3.53429635]
[1767003552130,0.13,126.05,125.96,3.53429635]
[1767003552330,0.13,126.05,125.96,3.48]
[1767003552726,0.13,126.05,126.0,3.48]
[1767003552926,93.9,126.06,126.0,3.48]
[1767003553126,0.05586622,126.04,126.02,0.05728112]
[1767003558136,0.07,126.03,125.96,3.48]
[1767003558435,93.95,126.03,125.96,3.48]
[1767003559233,0.0608999,126.01,125.98,0.05965807]
[1767003562033,0.0008999,126.01,125.98,3.53965807]
[1767003562538,93.93,126.06,126.0,10.6312]
[1767003563131,0.07,126.06,126.0,10.6312]
[1767003563337,0.06072272,126.04,126.02,0.05961361]
[1767003569732,0.00072272,126.04,126.02,3.53961361]
[1767003571944,93.86,126.07,126.02,3.53961361]
[1767003573050,0.06014884,126.06,126.02,3.53961361]
[1767003577556,0.13,126.04,125.98,3.48]
[1767003578053,93.97,126.04,125.98,3.48]
[1767003578557,0.05364815,126.02,126.0,0.05319027]
[1767003579650,0.18364815,126.02,125.96,3.48]
[1767003579856,0.13,126.02,125.96,3.48]
[1767003580056,0.13,126.02,125.92,3.48]
[1767003580250,0.13,126.01,125.92,3.48]
[1767003580455,101.1209,126.01,125.94,3.48]
[1767003580659,0.05731975,125.99,125.96,0.05812047]
[1767003586161,7.20931975,125.99,125.96,0.05812047]
[1767003586362,9.56616403,125.99,125.96,0.05812047]
[1767003588964,0.05731975,125.99,125.96,0.05812047]
[1767003599470,0.13,125.98,125.92,10.5858]
[1767003599671,0.13,125.98,125.93,3.43]
[1767003599875,2.35684428,125.99,125.93,3.43]
[1767003600380,9.50864428,125.99,125.93,3.43]
[1767003600580,0.05923202,125.97,125.95,0.05832505]
[1767003603582,7.1518,125.99,125.95,0.05832505]
[1767003604675,0.06036036,125.98,125.95,3.48832505]
[1767003604882,100.9911,126.01,125.95,3.48832505]
[1767003605077,93.84,126.01,125.95,3.48832505]
[1767003605982,0.05424168,125.99,125.95,3.48832505]
[1767003606481,0.00424168,125.99,125.95,3.48832505]
[1767003610594,7.15604168,125.99,125.95,0.05832505]
[1767003610896,9.51288596,125.99,125.95,0.05832505]
[1767003611190,9.75288596,125.99,125.95,0.05832505]
[1767003612488,0.00424168,125.99,125.95,0.05832505]
[1767003618990,0.00424168,125.99,125.95,3.48832505]
[1767003623092,0.24424168,125.99,125.95,0.05832505]
[1767003624297,0.00424168,125.99,125.95,3.48832505]
[1767003625793,0.00424168,125.99,125.95,0.05832505]
[1767003628404,0.00424168,125.99,125.95,3.48832505]
[1767003629801,0.00424168,125.99,125.95,10.64232505]
[1767003629996,0.24,126.02,125.96,3.43]
[1767003631002,0.06035725,126.0,125.98,0.05437297]
[1767003631702,0.24,126.02,125.98,0.05437297]
[1767003632805,0.05379554,126.01,125.98,0.05437297]
[1767003634804,9.69099507,126.07,126.01,3.43]
[1767003635105,3.7382352,126.08,125.98,3.43]
[1767003635106,0.29,126.05,125.98,3.43]
[1767003635406,2.64684428,126.05,125.98,3.43]
[1767003635604,2.64684428,126.05,125.99,3.43]
[1767003635804,0.00174175,126.03,126.01,3.48323471]
[1767003636004,9.69099507,126.07,126.01,3.48323471]
[1767003636005,2.64684428,126.07,126.01,3.48323471]
[1767003637008,0.0517322,126.05,126.01,3.48323471]
[1767003643006,0.0517322,126.05,126.01,0.05323471]
[1767003644612,0.0517322,126.05,126.01,3.48323471]
[1767003647405,0.0517322,126.05,126.02,3.23]
[1767003650810,0.0517322,126.05,126.02,10.3799]
[1767003651010,0.0517322,126.05,126.03,3.23]
[1767003651810,0.0517322,126.05,126.04,3.23]
[1767003652406,7.5351,126.11,126.05,3.23]
[1767003653406,0.05217836,126.09,126.07,0.05220667]
[1767003656813,0.00217836,126.09,126.07,0.05220667]
[1767003668026,0.44217836,126.09,126.02,3.46]
[1767003668230,4.11896105,126.08,126.02,3.46]
[1767003668926,4.11896105,126.08,126.04,0.05772535]
[1767003668927,0.05544825,126.06,126.04,0.05772535]
[1767003669125,0.05544825,126.06,126.02,3.46]
[1767003670234,3.49544825,126.06,125.98,7.1518]
[1767003670431,3.44,126.06,125.98,7.1518]
[1767003671027,3.44,126.05,125.95,111.2862]
[1767003671334,3.44,126.05,125.99,0.0596262]
[1767003671634,93.82,126.06,125.99,0.0596262]
[1767003672230,93.82,126.06,126.0,3.46]
[1767003672432,0.0562552,126.04,125.95,3.46]
[1767003672631,3.44,126.05,125.96,3.46]
[1767003673330,7.1497,126.03,125.97,3.46]
[1767003673533,0.05445379,126.01,125.99,0.0538705]
[1767003674932,0.00445379,126.01,125.99,3.5138705]
[1767003675435,0.00445379,126.01,126.0,3.46]
[1767003684638,3.23,126.08,126.03,3.44]
[1767003685040,3.23,126.1,126.03,3.44]
[1767003685754,0.05648146,126.08,126.05,0.05267997]
[1767003686342,0.05648146,126.08,126.05,3.49267997]
[1767003687545,0.05648146,126.08,126.05,10.64107997]
[1767003688046,10.3745,126.12,126.05,10.64107997]
[1767003688347,3.23,126.12,126.07,3.44]
[1767003688735,95.22087019,126.13,126.07,10.5872]
[1767003688941,0.05013532,126.11,126.09,0.06046699]
[1767003689250,3.23,126.14,126.09,0.06046699]
[1767003689650,17.69049763,126.16,126.09,3.50046699]
[1767003689951,8.28950256,126.16,126.09,3.50046699]
[1767003690648,4.61054151,126.16,126.09,3.50046699]
[1767003691637,3.23,126.15,126.09,3.50046699]
[1767003691841,3.23,126.15,126.09,0.06046699]
[1767003692748,10.3739,126.13,126.09,0.06046699]
[1767003692948,3.23,126.12,126.09,0.06046699]
[1767003695254,10.3745,126.12,126.06,3.44]
[1767003696141,0.05574275,126.1,126.08,0.05675707]
[1767003698255,7.1441,126.13,126.08,0.05675707]
[1767003698447,10.3741,126.13,126.08,0.05675707]
[1767003699347,0.02182563,126.12,126.08,0.05675707]
[1767003699851,3.25182563,126.12,126.08,0.05675707]
[1767003700059,3.23,126.11,126.05,3.44]
[1767003701044,3.23,126.11,126.07,0.05652369]
[1767003701045,0.05270308,126.09,126.07,0.05652369]
[1767003702758,3.28270308,126.09,126.04,7.1484]
[1767003702958,3.28270308,126.09,126.03,3.44]
[1767003703753,3.28270308,126.09,126.05,0.05778689]
[1767003709158,0.05270308,126.09,126.05,3.41778689]
[1767003709567,3.21,126.06,125.98,3.36]
[1767003709760,2.35343383,126.07,125.98,3.36]
[1767003709761,3.21,126.04,125.98,3.36]
[1767003710767,0.05773257,126.02,126.0,0.05009073]
[1767003722499,3.52773257,126.02,126.0,9.073e-05]
[1767003722989,10.67783257,126.02,126.0,9.073e-05]
[1767003726090,10.67783257,126.02,125.95,10.5441]
[1767003726591,10.67783257,126.02,125.96,3.39]
[1767003726996,10.67783257,126.02,125.98,0.05260674]
[1767003732599,3.52773257,126.02,125.98,0.05260674]
[1767003733096,0.05773257,126.02,125.98,3.44260674]
[1767003734705,0.05773257,126.02,125.98,10.59480674]
[1767003740901,0.05773257,126.02,125.98,7.20480674]
[1767003741097,3.47,126.04,125.99,3.24]
[1767003742098,0.05462126,126.03,125.99,3.24]
[1767003744901,0.05462126,126.03,126.0,3.24]
[1767003745100,0.00462126,126.03,126.0,3.24]
[1767003745504,0.00462126,126.03,126.01,3.24]
[1767003745704,93.86,126.08,126.01,5.59343383]
[1767003745901,3.29,126.1,126.04,3.24]
[1767003746105,10.4362,126.09,126.02,3.24]
[1767003746809,0.05360109,126.07,126.04,0.05017936]
[1767003747103,0.05360109,126.07,126.04,3.29017936]
[1767003750001,0.05360109,126.07,126.04,0.05017936]
[1767003750701,3.34360109,126.07,126.04,0.05017936]
[1767003754014,3.34360109,126.07,126.01,3.24]
[1767003754408,10.49100109,126.07,126.01,3.24]
[1767003755015,10.49100109,126.07,126.03,0.05739671]
[1767003763414,3.34360109,126.07,126.03,0.05739671]
[1767003763813,3.29,126.06,125.99,10.3913]
[1767003764019,2.40703492,126.07,125.99,10.3913]
[1767003764020,3.29,126.05,125.99,10.3913]
[1767003764412,3.29,126.05,126.0,3.24]
[1767003764813,0.05162549,126.04,126.01,0.05388514]
[1767003770932,0.05162549,126.04,126.01,3.46388514]
[1767003774824,3.21,126.07,126.01,10.61458514]
[1767003775021,3.21,126.07,126.02,3.17]
[1767003775820,0.05410176,126.06,126.02,3.17]
[1767003779730,0.00410176,126.06,126.03,3.17]
[1767003780634,3.34410176,126.06,126.01,0.05388514]
[1767003780837,3.34410176,126.06,125.95,3.17]
[1767003780838,3.34,126.04,125.95,3.17]
[1767003781040,3.34,126.01,125.95,3.17]
[1767003781929,0.05390467,125.99,125.97,0.05284445]
[1767003790346,3.34,126.01,125.97,0.05284445]
[1767003790543,3.34,126.03,125.97,3.22284445]
[1767003790935,100.9895,126.04,125.97,7.20574445]
[1767003791143,104.3295,126.04,125.98,3.17]
[1767003791345,0.05879014,126.02,126.0,0.05793468]
[1767003792048,10.4883,126.06,126.0,3.22793468]
[1767003792950,0.05944665,126.04,126.0,3.22793468]
[1767003799252,7.1473,126.07,126.01,3.36]
[1767003799551,10.3473,126.07,126.01,3.36]
[1767003799755,3.2,126.09,126.02,3.36]
[1767003800254,3.2,126.09,126.04,0.05368688]
[1767003800955,3.2,126.09,126.04,3.41368688]
[1767003805561,7.1456,126.1,126.04,3.41368688]
[1767003805958,12.60099507,126.11,126.04,3.41368688]
[1767003806170,3.2,126.11,126.04,3.41368688]
[1767003806667,10.3451,126.11,126.04,10.56258688]
[1767003807362,10.3451,126.11,126.05,3.36]
[1767003807558,10.3451,126.11,126.07,0.05992364]
[1767003811663,10.3456,126.1,126.07,0.05992364]
[1767003811865,3.2,126.09,126.03,3.36]
[1767003812569,3.2,126.09,126.03,10.5092]
[1767003812765,0.05847235,126.07,126.05,0.05840607]
[1767003813174,12.60099507,126.15,126.06,3.36]
[1767003813371,3.2,126.15,126.06,3.36]
[1767003813766,3.2,126.14,126.06,3.36]
[1767003814266,3.2,126.14,126.09,0.05566419]
[1767003814669,10.344,126.13,126.09,0.05566419]
[1767003815373,10.3447,126.12,126.09,0.05566419]
[1767003815766,10.3447,126.12,126.06,3.36]
[1767003816776,0.05354797,126.1,126.08,0.05258234]
[1767003821172,3.2,126.09,126.03,7.149]
[1767003821674,3.2,126.09,126.03,10.509]
[1767003822077,0.05080858,126.07,126.05,0.05881412]
[1767003825487,3.2,126.09,126.05,0.05881412]
[1767003826176,10.3462,126.09,126.05,0.05881412]
[1767003826577,0.05932252,126.08,126.05,0.05881412]
[1767003828384,3.47932252,126.08,126.05,0.05881412]
[1767003828679,3.42,126.07,126.0,3.38]
[1767003829587,0.06030539,126.05,126.02,0.05103737]
[1767003835787,0.06030539,126.05,126.02,3.49103737]
[1767003837584,0.06030539,126.05,126.02,10.64113737]
[1767003837783,3.42,126.07,126.02,10.64113737]
[1767003838786,0.05571173,126.06,126.02,10.64113737]
[1767003839288,0.05571173,126.06,126.03,3.44]
[1767003844591,0.05571173,126.06,126.03,10.5895]
[1767003853901,0.05571173,126.06,126.03,3.44]
[1767003861603,0.05571173,126.06,126.02,0.05103737]
[1767003861907,3.50571173,126.06,126.02,0.05103737]
[1767003862300,0.05571173,126.06,126.02,3.46103737]
[1767003870316,93.82,126.09,126.03,3.41]
[1767003870515,97.27,126.09,126.03,3.41]
[1767003871208,0.02001068,126.07,126.05,0.05505397]
[1767003873711,3.47001068,126.07,126.01,3.41]
[1767003874912,3.47001068,126.07,126.03,0.05957681]
[1767003884122,0.02001068,126.07,126.03,3.46957681]
[1767003885222,3.47001068,126.07,126.03,0.05957681]
[1767003886726,0.02001068,126.07,126.03,3.36957681]
[1767003903232,7.16731068,126.07,126.03,0.05957681]
[1767003903439,3.31,126.05,125.99,3.19]
[1767003903733,3.31,126.04,125.99,3.19]
[1767003904525,0.05637363,126.03,126.0,0.05670136]
[1767003908532,0.05637363,126.03,125.99,2.11762898]
[1767003909533,0.05637363,126.03,126.0,0.05129863]
[1767003912139,3.31,126.07,126.0,3.24129863]
[1767003912342,97.15,126.07,126.0,3.19]
[1767003913242,0.05315612,126.05,126.02,0.05086407]
[1767003917946,0.05315612,126.05,126.02,7.20096407]
[1767003918346,3.38,126.09,126.03,3.49]
[1767003919040,3.38,126.09,126.03,10.6395]
[1767003919237,3.38,126.07,126.0,3.49]
[1767003919544,3.43629734,126.05,126.02,0.00247595]
[1767003920951,0.05629734,126.05,126.02,0.00247595]
[1767003922151,0.05629734,126.05,126.02,3.49247595]
[1767003933554,3.43629734,126.05,126.02,0.00247595]
[1767003933951,3.43629734,126.05,125.98,3.49]
[1767003934157,10.5291,126.04,125.98,3.49]
[1767003934657,3.38,126.04,125.98,3.49]
[1767003934852,0.05916775,126.02,126.0,0.05067542]
[1767003935354,3.38,126.05,126.0,0.05067542]
[1767003935554,10.5284,126.05,126.0,0.05067542]
[1767003936247,0.05821064,126.04,126.0,0.05067542]
[1767003940260,3.38,126.03,126.0,0.05067542]
[1767003940956,7.20721064,126.04,126.0,0.05067542]
[1767003942163,10.58721064,126.04,126.0,0.05067542]
[1767003944863,3.38,126.03,126.0,0.05067542]
[1767003945562,10.5297,126.03,126.0,0.00067542]
[1767003946760,7.1503,126.02,126.0,0.00067542]
[1767003950557,3.38,126.03,126.0,0.00067542]
[1767003951661,10.5296,126.03,126.0,0.00067542]
[1767003953162,10.5302,126.02,125.97,3.45]
[1767003954266,0.05388796,126.01,125.98,0.05745042]
[1767003958862,3.43388796,126.01,125.98,0.05745042]
[1767003960767,0.05388796,126.01,125.98,0.05745042]
[1767003966567,3.43388796,126.01,125.98,0.05745042]
[1767003991000,12.83488303,126.01,125.96,10.4035]
[1767003991996,3.43388796,126.01,125.97,0.0556311]
[1767004001316,3.15,126.03,125.98,3.15]
[1767004001615,3.15,126.03,125.97,3.2056311]
[1767004002405,0.0593957,126.01,125.97,3.2056311]
[1767004003914,0.0593957,126.01,125.97,10.3585311]
[1767004009123,0.0593957,126.01,125.98,10.5824]
[1767004009319,3.28,126.04,125.99,3.43]
[1767004009713,10.429,126.04,125.99,3.43]
[1767004010014,3.28,126.03,125.99,3.43]
[1767004010226,0.05171089,126.02,126.0,0.05333181]
[1767004012719,3.42,126.04,126.0,0.05333181]
[1767004012916,3.42,126.06,126.0,3.43333181]
[1767004014416,3.42,126.06,126.0,10.58453181]
[1767004017126,3.42,126.05,126.0,0.00333181]
[1767004018226,3.47230498,126.04,126.0,0.00333181]
[1767004021026,3.42,126.02,125.92,3.38]
[1767004021220,3.42,126.01,125.93,3.38]
[1767004021932,0.05514799,125.98,125.96,0.05505268]
[1767004034045,0.05514799,125.98,125.96,7.20855268]
[1767004034246,3.42,126.0,125.96,7.20855268]
[1767004038353,3.42,126.0,125.96,0.05505268]
[1767004041956,7.1509,126.01,125.92,10.4152]
[1767004041957,3.44,125.98,125.92,10.4152]
[1767004042353,3.44,125.98,125.92,3.26]
[1767004042959,0.05436812,125.96,125.94,0.06023797]
[1767004043262,3.44,126.0,125.95,3.26]
[1767004044163,3.44,126.0,125.96,0.0600088]
[1767004071278,3.44,126.0,125.96,3.4900088]
[1767004071882,3.44,126.0,125.96,0.0600088]
[1767004080785,12.65099507,126.01,125.96,3.5300088]
[1767004081185,3.25,126.0,125.96,3.5300088]
[1767004081385,3.25,126.0,125.96,0.0600088]
[1767004083273,3.25,126.0,125.96,8.8e-06]
[1767004083479,3.25,125.97,125.91,7.1563]
[1767004084487,0.05358519,125.95,125.93,0.05925545]
[1767004086482,3.25,125.97,125.93,0.05925545]
[1767004087483,0.02354455,125.96,125.93,0.05925545]
[1767004088184,3.27354455,125.96,125.93,0.05925545]
[1767004089987,0.02354455,125.96,125.93,0.05925545]
[1767004090191,3.25,125.95,125.89,114.8068]
[1767004090390,3.25,125.95,125.89,3.47]
[1767004091083,0.05168717,125.93,125.91,0.05235038]
[1767004091685,0.05168717,125.93,125.91,7.20865038]
[1767004091888,2.35615825,126.0,125.91,3.52235038]
[1767004092087,2.35615825,126.0,125.91,3.47]
[1767004092689,9.50785825,126.0,125.92,7.1557]
[1767004092890,0.03111283,125.97,125.95,0.05035301]
[1767004093794,0.03111283,125.97,125.95,0.00035301]
[1767004101392,7.151,126.01,125.95,0.00035301]
[1767004101393,9.40099507,126.01,125.95,0.00035301]
[1767004101997,105.63715332,126.02,125.95,0.00035301]
[1767004102298,0.05,126.0,125.95,0.00035301]
[1767004107314,0.05,126.0,125.95,7.15435301]
[1767004109212,10.78298943,126.03,125.96,5.58615825]
[1767004110319,10.78298943,126.03,125.98,0.06049521]
[1767004113018,13.13914768,126.03,125.98,0.06049521]
[1767004117224,10.78298943,126.03,125.98,0.06049521]
[1767004117419,9.40099507,126.04,125.98,3.29049521]
[1767004117623,9.40099507,126.05,125.98,3.29049521]
[1767004117820,9.40099507,126.05,126.0,0.05454347]
[1767004118024,9.40099507,126.07,126.01,3.23]
[1767004118323,2.35615825,126.06,125.99,3.23]
[1767004119225,2.35615825,126.06,126.01,0.05704606]
[1767004119427,0.05441871,126.04,126.01,0.05704606]
[1767004126632,2.41057696,126.04,125.97,10.5325]
[1767004127032,2.41057696,126.04,125.98,3.38]
[1767004127735,2.41057696,126.04,125.96,3.38]
[1767004127934,2.35615825,126.04,125.96,3.38]
[1767004128639,7.1496,126.03,125.96,3.38]
[1767004128842,0.05654846,126.01,125.98,0.05910054]
[1767004138339,0.05654846,126.01,125.98,3.41910054]
[1767004141430,7.1493,126.04,125.98,3.41910054]
[1767004141630,7.1493,126.04,125.98,3.36]
[1767004142339,0.06099911,126.02,126.0,0.05518367]
[1767004142539,0.05651936,126.02,126.0,0.05518367]
[1767004143430,7.1484,126.06,126.0,0.05518367]
[1767004144536,0.05899876,126.04,126.0,0.05518367]
[1767004144840,8.52867317,126.08,126.01,3.36]
[1767004145837,8.52867317,126.08,126.03,0.05084276]
[1767004146242,7.1473,126.07,126.03,0.05084276]
[1767004147454,1.38147317,126.08,126.03,0.05084276]
[1767004148644,8.52817317,126.08,126.03,0.05084276]
[1767004154747,7.1473,126.07,126.03,0.05084276]
[1767004156952,8.52827317,126.08,126.03,3.50084276]
[1767004158550,7.1473,126.07,126.03,0.05084276]
[1767004170268,1.38147317,126.08,126.03,0.05084276]
[1767004171673,8.52847317,126.08,126.03,0.05084276]
[1767004172166,1.38147317,126.08,126.03,0.00084276]
[1767004173258,0.05,126.07,126.03,0.00084276]
[1767004173660,7.1974,126.07,126.03,0.00084276]
[1767004177873,0.05,126.07,126.03,0.00084276]
[1767004185277,7.1973,126.07,126.03,0.00084276]
[1767004194982,0.05,126.07,126.03,0.00084276]
[1767004200794,9.45099507,126.07,126.03,0.00084276]
[1767004201484,11.80473192,126.07,126.03,0.00084276]
[1767004202686,2.35373685,126.05,125.98,3.34]
[1767004202889,2.35373685,126.05,125.96,2.35373685]
[1767004202890,11.75473192,126.03,125.96,3.34]
[1767004203687,0.05084276,126.01,125.98,0.05973942]
[1767004203892,0.05084276,126.01,125.98,3.39973942]
[1767004206990,214.43279507,126.06,125.98,3.39973942]
[1767004207190,7.1495,126.04,125.98,3.34]
[1767004207389,96.19373685,126.06,125.98,3.34]
[1767004207591,2.35373685,126.06,125.98,3.34]
[1767004207990,2.35373685,126.06,126.01,0.05917716]
[1767004208294,9.50163685,126.06,126.01,0.05917716]
[1767004210495,7.1484,126.05,125.99,3.34]
[1767004211497,0.05723058,126.03,126.01,0.0561903]
[1767004225809,7.20683058,126.03,125.99,3.34]
[1767004226810,7.20683058,126.03,126.0,0.05449959]
[1767004234518,0.05723058,126.03,126.0,0.05449959]
[1767004239607,0.05723058,126.03,126.0,3.36449959]
[1767004239815,9.40099507,126.06,126.0,3.36449959]
[1767004240620,16.54889507,126.06,126.0,3.36449959]
[1767004240919,0.05813688,126.04,126.0,3.36449959]
[1767004244722,7.20713688,126.04,126.0,3.36449959]
[1767004245428,7.20713688,126.04,126.0,0.05449959]
[1767004246021,16.60813195,126.04,126.0,0.05449959]
[1767004254626,9.45913195,126.04,126.0,0.00449959]
[1767004254827,0.05813688,126.04,126.0,0.00449959]
[1767004255725,7.1502,126.02,126.0,0.00449959]
[1767004257324,7.1496,126.03,126.0,0.00449959]
[1767004262324,7.20713688,126.04,126.0,0.00449959]
[1767004263433,3.68058517,126.01,125.93,3.33]
[1767004263636,3.68058517,125.99,125.93,3.33]
[1767004263826,104.69238517,125.99,125.93,3.33]
[1767004264432,0.0550226,125.97,125.93,3.33]
[1767004265632,0.0550226,125.97,125.94,0.05586349]
[1767004271936,0.0550226,125.97,125.91,3.45]